fUST/lending_fUST_20250423
["ID","MTS","AMOUNT","RATE_DAILY","PERIOD"]
[358659796,1745344245419,-500.0,0.00023013,2]
[358659797,1745344245428,-500.0,0.00023013,2]
[358659798,1745344245438,-851.41,0.00023013,2]
[358659799,1745344245448,-500.0,0.00023013,2]
[358659800,1745344245457,-3313.27,0.00023013,2]
[358659801,1745344245467,-500.0,0.00023013,2]
[358659802,1745344245476,-500.0,0.00023013,2]
[358659803,1745344245486,-500.0,0.00023013,2]
[358659804,1745344245497,-500.0,0.00023013,2]
[358659805,1745344245506,-500.0,0.00023013,2]
[358659806,1745344245516,-500.0,0.00023013,2]
[358659807,1745344245528,-500.0,0.00023013,2]
[358659808,1745344245538,-500.0,0.00023013,2]
[358659809,1745344245548,-1118.05,0.00023013,2]
[358659810,1745344245558,-500.0,0.00023013,2]
[358659811,1745344245568,-500.0,0.00023013,2]
[358659812,1745344245577,-1715.48,0.00023013,2]
[358659813,1745344245587,-151.0,0.00023013,7]
[358659814,1745344245597,-170.648995,0.00023013,7]
[358659815,1745344245606,-500.0,0.00023013,2]
[358659816,1745344245616,-165.0,0.00023014,2]
[358659817,1745344245626,-465.18294451,0.00023154,2]
[358659818,1745344245635,-500.0,0.00023287,2]
[358659819,1745344245646,-500.0,0.00023287,2]
[358659820,1745344245656,-500.0,0.00023287,2]
[358659821,1745344245665,-500.0,0.00023287,2]
[358659822,1745344245675,-500.0,0.00023287,2]
[358659823,1745344245684,-627.86,0.00023287,2]
[358659824,1745344245694,-151.0,0.00023287,7]
[358659825,1745344245703,-275.672529,0.00023287,7]
[358659826,1745344245713,-275.672529,0.00023287,7]
[358659827,1745344245722,-500.0,0.00023287,2]
[358659828,1745344245732,-266.798285,0.00023287,7]
[358659829,1745344245741,-266.798285,0.00023287,7]
[358659830,1745344245751,-180.19273463,0.00023287,2]
[358659831,1745344245761,-500.0,0.00023287,2]
[358659832,1745344245776,-955.39,0.00023287,2]
[358659833,1745344245785,-151.0,0.00023287,7]
[358659834,1745344245795,-500.0,0.00023287,2]
[358659835,1745344245806,-500.0,0.00023287,2]
[358659837,1745344245816,-500.0,0.00023287,2]
[358659838,1745344245826,-500.0,0.00023287,2]
[358659839,1745344245836,-151.178262,0.00023287,7]
[358659840,1745344245846,-4026.03,0.00023287,2]
[358659841,1745344245856,-500.0,0.00023287,2]
[358659842,1745344245865,-500.0,0.00023287,2]
[358659843,1745344245875,-500.0,0.00023287,2]
[358659844,1745344245884,-5619.97,0.00023287,2]
[358659845,1745344245893,-386.68793361,0.00023287,2]
[358659846,1745344245903,-500.0,0.00023287,2]
[358659847,1745344245912,-500.0,0.00023287,2]
[358659848,1745344245922,-500.0,0.00023287,2]
[358659849,1745344245932,-500.0,0.00023287,2]
[358659850,1745344245942,-1719.92,0.00023287,2]
[358659851,1745344245952,-500.0,0.00023287,2]
[358659852,1745344245961,-1033.47,0.00023287,2]
[358659853,1745344245971,-500.0,0.00023287,2]
[358659854,1745344245980,-151.0,0.00023287,7]
[358659855,1745344245990,-151.0,0.00023287,7]
[358659856,1745344245999,-500.0,0.00023287,2]
[358659857,1745344246009,-500.0,0.00023287,2]
[358659858,1745344246019,-500.0,0.00023287,2]
[358659859,1745344246029,-851.41,0.00023287,2]
[358659860,1745344246040,-500.0,0.00023287,2]
[358659861,1745344246049,-3313.27,0.00023287,2]
[358659862,1745344246059,-500.0,0.00023287,2]
[358659863,1745344246068,-500.0,0.00023287,2]
[358659864,1745344246078,-500.0,0.00023287,2]
[358659865,1745344246088,-500.0,0.00023287,2]
[358659866,1745344246101,-500.0,0.00023287,2]
[358659867,1745344246114,-500.0,0.00023287,2]
[358659868,1745344246123,-500.0,0.00023287,2]
[358659869,1745344246133,-500.0,0.00023287,2]
[358659870,1745344246143,-1118.05,0.00023287,2]
[358659871,1745344246152,-500.0,0.00023287,2]
[358659872,1745344246162,-500.0,0.00023287,2]
[358659873,1745344246171,-1715.48,0.00023287,2]
[358659874,1745344246182,-500.0,0.00023287,2]
[358659875,1745344246192,-600.0,0.00023482,2]
[358659876,1745344246201,-500.0,0.00023561,2]
[358659877,1745344246211,-500.0,0.00023561,2]
[358659878,1745344246220,-500.0,0.00023561,2]
[358659879,1745344246230,-500.0,0.00023561,2]
[358659880,1745344246239,-500.0,0.00023561,2]
[358659881,1745344246248,-500.0,0.00023561,2]
[358659882,1745344246257,-500.0,0.00023561,2]
[358659883,1745344246267,-500.0,0.00023561,2]
[358659884,1745344246285,-266.0,0.00023561,2]
[358659885,1745344246295,-736.663345,0.00023561,7]
[358659886,1745344246304,-736.663345,0.00023561,7]
[358659887,1745344246313,-151.0,0.00023561,7]
[358659888,1745344246324,-151.0,0.00023561,7]
[358659889,1745344246334,-151.0,0.00023561,7]
[358659890,1745344246343,-151.0,0.00023561,7]
[358659891,1745344246352,-151.0,0.00023561,7]
[358659892,1745344246362,-152.611639,0.00023561,7]
[358659893,1745344246372,-1584.444665,0.00023561,2]
[358659894,1745344246381,-1584.444665,0.00023561,2]
[358659895,1745344246391,-151.0,0.00023561,7]
[358659896,1745344246401,-151.0,0.00023561,7]
[358659897,1745344246410,-500.0,0.00023561,2]
[358659898,1745344246420,-500.0,0.00023561,2]
[358659899,1745344246430,-500.0,0.00023561,2]
[358659900,1745344246440,-151.0,0.00023561,7]
[358659901,1745344246450,-320.663669,0.00023561,7]
[358659902,1745344246460,-320.663669,0.00023561,7]
[358659903,1745344246471,-203.265335,0.00023561,7]
[358659904,1745344246480,-203.265335,0.00023561,7]
[358659905,1745344246489,-500.0,0.00023561,2]
[358659906,1745344246500,-500.0,0.00023561,2]
[358659907,1745344246510,-627.86,0.00023561,2]
[358659908,1745344246520,-326.1196972,0.00023561,2]
[358659909,1745344246533,-1287.328482,0.00023561,7]
[358659910,1745344246543,-1287.328482,0.00023561,7]
[358659911,1745344246554,-500.0,0.00023561,2]
[358659912,1745344246564,-955.39,0.00023561,2]
[358659913,1745344246574,-500.0,0.00023561,2]
[358659914,1745344246584,-500.0,0.00023561,2]
[358659915,1745344246594,-500.0,0.00023561,2]
[358659916,1745344246604,-284.065625,0.00023561,2]
[358659917,1745344246614,-284.065625,0.00023561,2]
[358659918,1745344246624,-4026.03,0.00023561,2]
[358659919,1745344246634,-500.0,0.00023561,2]
[358659920,1745344246644,-500.0,0.00023561,2]
[358659921,1745344246655,-500.0,0.00023561,2]
[358659922,1745344246666,-5619.97,0.00023561,2]
[358659923,1745344246676,-500.0,0.00023561,2]
[358659925,1745344246686,-500.0,0.00023561,2]
[358659926,1745344246696,-500.0,0.00023561,2]
[358659927,1745344246706,-500.0,0.00023561,2]
[358659928,1745344246717,-1719.92,0.00023561,2]
[358659930,1745344246727,-500.0,0.00023561,2]
[358659931,1745344246737,-1033.47,0.00023561,2]
[358659933,1745344246748,-500.0,0.00023561,2]
[358659935,1745344246759,-500.0,0.00023561,2]
[358659936,1745344246771,-500.0,0.00023561,2]
[358659937,1745344246785,-500.0,0.00023561,2]
[358659938,1745344246795,-851.41,0.00023561,2]
[358659939,1745344246807,-229.54642107,0.00023561,2]
[358659940,1745344246817,-3313.27,0.00023561,2]
[358659941,1745344246826,-500.0,0.00023561,2]
[358659942,1745344246836,-500.0,0.00023561,2]
[358659943,1745344246846,-500.0,0.00023561,2]
[358659944,1745344246857,-500.0,0.00023561,2]
[358659946,1745344246866,-500.0,0.00023561,2]
[358659947,1745344246875,-500.0,0.00023561,2]
[358659948,1745344246885,-500.0,0.00023561,2]
[358659949,1745344246895,-500.0,0.00023561,2]
[358659950,1745344246905,-1118.05,0.00023561,2]
[358659951,1745344246915,-500.0,0.00023561,2]
[358659952,1745344246924,-500.0,0.00023561,2]
[358659953,1745344246934,-1715.48,0.00023561,2]
[358659954,1745344246946,-151.0,0.00023561,7]
[358659955,1745344246956,-500.0,0.00023561,2]
[358659956,1745344247089,-151.0,0.00023613,7]
[358659957,1745344247100,-151.0,0.00023613,7]
[358659958,1745344247110,-151.0,0.00023613,7]
[358659959,1745344247120,-500.0,0.0002383,2]
[358659960,1745344247130,-160.33248701,0.0002383,2]
[358659961,1745344247140,-501.12334003,0.0002383,2]
[358659962,1745344247150,-500.90416285,0.0002383,2]
[358659963,1745344247160,-500.0,0.0002383,2]
[358659964,1745344247170,-500.0,0.0002383,2]
[358659965,1745344247180,-500.0,0.0002383,2]
[358659966,1745344247190,-152.414376,0.00023835,7]
[358659967,1745344247199,-151.0,0.00023835,7]
[358659968,1745344247209,-92.76407478,0.00023835,7]
[358659969,1745344247318,-58.23592522,0.00023835,7]
[358659970,1745344247329,-227.049587,0.00023835,7]
[358659971,1745344247339,-227.049587,0.00023835,7]
[358659972,1745344247349,-151.0,0.00023835,7]
[358659973,1745344247359,-151.0,0.00023835,7]
[358659974,1745344247368,-336.26733391,0.00023835,2]
[358659975,1745344247380,-163.73266609,0.00023835,2]
[358659976,1745344247390,-500.0,0.00023835,2]
[358659977,1745344247400,-500.0,0.00023835,2]
[358659978,1745344247410,-435.39868842,0.00023835,2]
[358659979,1745344247423,-64.60131158,0.00023835,2]
[358659980,1745344247432,-500.0,0.00023835,2]
[358659981,1745344247442,-627.86,0.00023835,2]
[358659982,1745344247452,-500.0,0.00023835,2]
[358659983,1745344247462,-955.39,0.00023835,2]
[358659984,1745344247472,-500.0,0.00023835,2]
[358659985,1745344247483,-431.87616421,0.00023835,2]
[358659986,1745344247496,-68.12383579,0.00023835,2]
[358659987,1745344247505,-886.08160257,0.00023835,2]
[358659988,1745344247518,-1998.49179696,0.00023835,2]
[358659989,1745344247535,-293.33861973,0.00023835,2]
[358659990,1745344247706,-1073.81180279,0.00021917,2]
[358659991,1745344247781,-796.27779658,0.00021917,2]
[358659992,1745344247794,-501.80040063,0.00021917,2]
[358659993,1745344247804,-441.29575156,0.00022191,2]
[358659994,1745344247815,-682.02225995,0.00022191,2]
[358659995,1745344247827,-1198.65646326,0.00022191,2]
[358659996,1745344247975,-49.91552523,0.00022191,2]
[358659997,1745344247985,-2371.89,0.00022465,2]
[358659998,1745344247995,-2371.89,0.00022739,2]
[358659999,1745344248005,-2371.89,0.00023013,2]
[358660000,1745344248016,-2371.89,0.00023287,2]
[358660001,1745344248030,-2371.89,0.00023561,2]
[358660002,1745344248040,-500.0,0.00023835,2]
[358660003,1745344248051,-500.0,0.00023835,2]
[358660004,1745344248062,-5619.97,0.00023835,2]
[358660005,1745344248072,-500.0,0.00023835,2]
[358660006,1745344248082,-500.0,0.00023835,2]
[358660007,1745344248093,-500.0,0.00023835,2]
[358660008,1745344248104,-322.28843853,0.00023835,2]
[358660009,1745344248113,-1719.92,0.00023835,2]
[358660010,1745344248124,-500.0,0.00023835,2]
[358660011,1745344248134,-1033.47,0.00023835,2]
[358660012,1745344248144,-500.0,0.00023835,2]
[358660013,1745344248154,-151.0,0.00023835,7]
[358660014,1745344248163,-500.0,0.00023835,2]
[358660015,1745344248174,-98.25361379,0.00023835,2]
[358660016,1745344248187,-401.74638621,0.00023835,2]
[358660017,1745344248196,-500.0,0.00023835,2]
[358660018,1745344248206,-851.41,0.00023835,2]
[358660019,1745344248218,-432.27542379,0.00023835,2]
[358660020,1745344248230,-455.675,0.00023835,2]
[358660021,1745344248242,-2425.31957621,0.00023835,2]
[358660022,1745344248253,-500.0,0.00023835,2]
[358660023,1745344248263,-500.0,0.00023835,2]
[358660024,1745344248275,-466.91716796,0.00023835,2]
[358660025,1745344248286,-33.08283204,0.00023835,2]
[358660026,1745344248297,-500.0,0.00023835,2]
[358660027,1745344248309,-256.81716788,0.00023835,2]
[358660028,1745344432292,1000.0,0.00019979,2]
[358660029,1745344433528,1714.9150212,0.00019592,2]
[358660031,1745344507487,288.7698945,0.00019594,2]
[358660032,1745344522322,1785.9526339,0.00019594,2]
[358660033,1745344530440,292.7475352,0.00019594,2]
[358660034,1745344833573,208.9798724,0.00019562,2]
[358660039,1745345296219,367.804008,0.00019572,2]
[358660050,1745345361005,250.0,0.00019568,2]
[358660051,1745345396130,2726.8656169,0.00019568,2]
[358660052,1745345410609,10000.0,0.0002001,2]
[358660058,1745345432477,-500.0,0.00020079,2]
[358660059,1745345432487,-543.21663503,0.00020079,2]
[358660060,1745345432497,-394.661,0.00020178,2]
[358660061,1745345432507,-184.11693588,0.00020178,2]
[358660062,1745345432517,-324.09100978,0.00020488,2]
[358660063,1745345432527,-1617.27922596,0.00020488,2]
[358660064,1745345432538,-300.0,0.00020576,2]
[358660065,1745345432548,-300.0,0.00020577,2]
[358660066,1745345432558,-300.0,0.00020577,2]
[358660067,1745345432568,-1645.51,0.00020578,3]
[358660068,1745345432577,-822.76,0.00020578,3]
[358660069,1745345432587,-411.38,0.00020578,3]
[358660070,1745345432597,-205.69,0.00020578,3]
[358660071,1745345432606,-617.08,0.00020578,3]
[358660072,1745345432616,-151.0,0.00020588,2]
[358660073,1745345432627,-151.0,0.00020588,2]
[358660074,1745345432637,-151.0,0.00020588,2]
[358660075,1745345432647,-151.0,0.00020588,2]
[358660076,1745345432656,-165.180743,0.00020588,2]
[358660077,1745345432666,-151.0,0.00020588,2]
[358660078,1745345432676,-151.0,0.00020588,2]
[358660079,1745345432685,-151.0,0.00020588,2]
[358660081,1745345432698,-151.0,0.00020588,2]
[358660083,1745345432708,-151.0,0.00020588,2]
[358660085,1745345432718,-151.0,0.00020588,2]
[358660086,1745345432728,-151.0,0.00020588,2]
[358660087,1745345432738,-156.612074,0.00020588,2]
[358660088,1745345432748,-151.0,0.00020588,2]
[358660089,1745345432759,-151.0,0.00020588,2]
[358660090,1745345432769,-151.0,0.00020588,2]
[358660091,1745345432780,-151.0,0.00020588,2]
[358660092,1745345432791,-151.0,0.00020588,2]
[358660093,1745345432800,-151.0,0.00020588,2]
[358660094,1745345432810,-151.0,0.00020588,2]
[358660095,1745345432819,-151.0,0.00020588,2]
[358660096,1745345432828,-152.499321,0.00020588,2]
[358660097,1745345432838,-151.0,0.00020588,2]
[358660098,1745345432847,-151.0,0.00020588,2]
[358660099,1745345432857,-233.19614,0.00020588,2]
[358660100,1745345432867,-233.19614,0.00020588,2]
[358660101,1745345432876,-233.19614,0.00020588,2]
[358660102,1745345432886,-233.19614,0.00020588,2]
[358660103,1745345432895,-1236.800322,0.00020588,2]
[358660104,1745345432905,-1236.800322,0.00020588,2]
[358660105,1745345432914,-1236.800322,0.00020588,2]
[358660106,1745345432924,-1236.800322,0.00020588,2]
[358660107,1745345432934,-1224.378632,0.00020588,2]
[358660108,1745345432944,-1224.378632,0.00020588,2]
[358660109,1745345432955,-1224.378632,0.00020588,2]
[358660110,1745345432965,-1224.378632,0.00020588,2]
[358660111,1745345432975,-281.810321,0.00020588,2]
[358660112,1745345432984,-151.0,0.00020588,2]
[358660113,1745345432994,-151.0,0.00020588,2]
[358660114,1745345433005,-153.834923,0.00020588,2]
[358660115,1745345433015,-253.472904,0.00020588,2]
[358660116,1745345433024,-253.472904,0.00020588,2]
[358660117,1745345433034,-253.472904,0.00020588,2]
[358660118,1745345433043,-253.472904,0.00020588,2]
[358660119,1745345433053,-151.0,0.00020588,2]
[358660120,1745345433063,-151.0,0.00020588,2]
[358660121,1745345433074,-151.0,0.00020588,2]
[358660122,1745345433084,-151.0,0.00020588,2]
[358660123,1745345433095,-151.0,0.00020588,2]
[358660124,1745345433105,-151.0,0.00020588,2]
[358660125,1745345433115,-151.0,0.00020588,2]
[358660126,1745345433126,-151.0,0.00020588,2]
[358660127,1745345433136,-500.0,0.00020588,2]
[358660128,1745345433146,-500.0,0.00020588,2]
[358660129,1745345433156,-500.0,0.00020588,2]
[358660130,1745345433166,-223.32219416,0.00020588,2]
[358660131,1745345433176,-500.0,0.00020588,2]
[358660132,1745345433186,-500.0,0.00020588,2]
[358660133,1745345433201,-500.0,0.00020588,2]
[358660134,1745345433211,-500.0,0.00020588,2]
[358660135,1745345433221,-500.0,0.00020588,2]
[358660136,1745345433231,-500.0,0.00020588,2]
[358660137,1745345433243,-161.02470938,0.00020588,2]
[358660138,1745345433252,-500.0,0.00020588,2]
[358660139,1745345433262,-500.0,0.00020588,2]
[358660140,1745345433274,-492.84902067,0.00020588,2]
[358660141,1745345433284,-163.16757105,0.00020588,2]
[358660142,1745345433294,-500.0,0.00020588,2]
[358660143,1745345433304,-7840.08544164,0.00020588,2]
[358660144,1745345433314,-500.0,0.00020588,2]
[358660145,1745345433324,-7840.08544164,0.00020588,2]
[358660146,1745345433334,-500.0,0.00020588,2]
[358660147,1745345433344,-7840.08544164,0.00020588,2]
[358660148,1745345433354,-7840.08544164,0.00020588,2]
[358660149,1745345433364,-500.0,0.00020588,2]
[358660150,1745345433375,-7840.08544164,0.00020588,2]
[358660151,1745345433385,-500.0,0.00020588,2]
[358660152,1745345433546,-7840.08544164,0.00020588,2]
[358660153,1745345433556,-500.0,0.00020588,2]
[358660154,1745345433566,-567.97976009,0.00020588,2]
[358660155,1745345433575,-7840.08544164,0.00020588,2]
[358660156,1745345433585,-500.0,0.00020588,2]
[358660157,1745345433595,-7840.08544164,0.00020588,2]
[358660158,1745345433605,-500.0,0.00020588,2]
[358660159,1745345433615,-7840.08544164,0.00020588,2]
[358660160,1745345433626,-500.0,0.00020588,2]
[358660161,1745345433636,-7840.08544164,0.00020588,2]
[358660162,1745345433646,-500.0,0.00020588,2]
[358660163,1745345433656,-7840.08544164,0.00020588,2]
[358660164,1745345433667,-7840.08544164,0.00020588,2]
[358660165,1745345433677,-500.0,0.00020588,2]
[358660166,1745345433687,-7840.08544164,0.00020588,2]
[358660167,1745345433698,-7840.08544164,0.00020588,2]
[358660168,1745345433708,-7840.08544164,0.00020588,2]
[358660169,1745345433718,-7840.08544164,0.00020588,2]
[358660170,1745345433727,-14.11049319,0.00020588,2]
[358660171,1745345433740,-485.88950681,0.00020588,2]
[358660172,1745345433750,-4844.48935226,0.00020588,2]
[358660173,1745345433761,-1685.28989609,0.00020588,2]
[358660174,1745345433774,-1310.30619329,0.00020588,2]
[358660175,1745345433783,-7840.08544164,0.00020588,2]
[358660176,1745345433794,-7840.08544164,0.00020588,2]
[358660177,1745345433803,-7840.08544164,0.00020588,2]
[358660178,1745345433813,-500.0,0.00020588,2]
[358660179,1745345433823,-7840.08544164,0.00020588,2]
[358660180,1745345433832,-500.0,0.00020588,2]
[358660181,1745345433841,-7840.08544164,0.00020588,2]
[358660182,1745345433851,-500.0,0.00020588,2]
[358660183,1745345433860,-7840.08544164,0.00020588,2]
[358660184,1745345433869,-7840.08544164,0.00020588,2]
[358660185,1745345433879,-500.0,0.00020588,2]
[358660186,1745345433889,-4542.84408801,0.00020588,2]
[358660223,1745345438740,-3297.24135363,0.00020588,2]
[358660224,1745345438750,-4611.65862937,0.00020588,2]
[358660225,1745345438763,-3228.42681227,0.00020588,2]
[358660226,1745345438773,-6500.17839742,0.00020588,2]
[358660227,1745345438785,-1339.90704422,0.00020588,2]
[358660228,1745345438796,-7840.08544164,0.00020588,2]
[358660229,1745345438807,-500.0,0.00020588,2]
[358660230,1745345438817,-7840.08544164,0.00020588,2]
[358660231,1745345438827,-7840.08544164,0.00020588,2]
[358660232,1745345438838,-7840.08544164,0.00020588,2]
[358660233,1745345438847,-500.0,0.00020588,2]
[358660234,1745345438857,-7840.08544164,0.00020588,2]
[358660235,1745345438867,-7840.08544164,0.00020588,2]
[358660236,1745345438880,-500.0,0.00020588,2]
[358660237,1745345438890,-7840.08544164,0.00020588,2]
[358660238,1745345438900,-7840.08544164,0.00020588,2]
[358660239,1745345438910,-500.0,0.00020588,2]
[358660240,1745345438919,-7840.08544164,0.00020588,2]
[358660241,1745345438929,-500.0,0.00020588,2]
[358660242,1745345438939,-7840.08544164,0.00020588,2]
[358660243,1745345438949,-300.0,0.00020588,2]
[358660245,1745345438958,-7840.08544164,0.00020588,2]
[358660246,1745345438968,-500.0,0.00020588,2]
[358660247,1745345438978,-7840.08544164,0.00020588,2]
[358660248,1745345438988,-7840.08544164,0.00020588,2]
[358660249,1745345438997,-500.0,0.00020588,2]
[358660250,1745345439006,-7840.08544164,0.00020588,2]
[358660251,1745345439016,-7840.08544164,0.00020588,2]
[358660252,1745345439025,-7840.08544164,0.00020588,2]
[358660253,1745345439035,-7840.08544164,0.00020588,2]
[358660254,1745345439044,-7840.08544164,0.00020588,2]
[358660255,1745345439054,-7840.08544164,0.00020588,2]
[358660256,1745345439063,-7840.08544164,0.00020588,2]
[358660257,1745345439072,-7840.08544164,0.00020588,2]
[358660258,1745345439082,-500.0,0.00020588,2]
[358660259,1745345439092,-7840.08544164,0.00020588,2]
[358660260,1745345439101,-7840.08544164,0.00020588,2]
[358660261,1745345439111,-7840.08544164,0.00020588,2]
[358660262,1745345439122,-193.14288463,0.00020588,2]
[358660263,1745345439133,-510.17850692,0.00020588,2]
[358660264,1745345439143,-500.0,0.00020588,2]
[358660265,1745345439152,-500.0,0.00020588,2]
[358660266,1745345439162,-500.0,0.00020588,2]
[358660267,1745345439172,-500.0,0.00020588,2]
[358660268,1745345439181,-500.0,0.00020588,2]
[358660269,1745345439191,-500.0,0.00020588,2]
[358660270,1745345439204,-500.0,0.00020588,2]
[358660271,1745345439214,-500.0,0.00020588,2]
[358660272,1745345439224,-500.0,0.00020588,2]
[358660273,1745345439233,-500.0,0.00020588,2]
[358660274,1745345439245,-500.0,0.00020588,2]
[358660275,1745345439255,-500.0,0.00020588,2]
[358660276,1745345439265,-500.0,0.00020588,2]
[358660277,1745345439277,-500.0,0.00020588,2]
[358660278,1745345439288,-500.0,0.00020588,2]
[358660279,1745345439298,-500.0,0.00020588,2]
[358660280,1745345439308,-500.0,0.00020588,2]
[358660281,1745345439318,-500.0,0.00020588,2]
[358660282,1745345439329,-500.0,0.00020588,2]
[358660283,1745345439339,-7840.08544164,0.00020588,2]
[358660284,1745345439349,-500.0,0.00020588,2]
[358660285,1745345439362,-7840.08544164,0.00020588,2]
[358660286,1745345439373,-500.0,0.00020588,2]
[358660287,1745345439389,-7840.08544164,0.00020588,2]
[358660288,1745345439400,-7840.08544164,0.00020588,2]
[358660289,1745345439411,-500.0,0.00020588,2]
[358660290,1745345439422,-7840.08544164,0.00020588,2]
[358660291,1745345439433,-7840.08544164,0.00020588,2]
[358660292,1745345439444,-7840.08544164,0.00020588,2]
[358660293,1745345439455,-500.0,0.00020588,2]
[358660294,1745345439467,-7840.08544164,0.00020588,2]
[358660295,1745345439478,-7840.08544164,0.00020588,2]
[358660296,1745345439489,-644.36003093,0.00020588,2]
[358660297,1745345439500,-7840.08544164,0.00020588,2]
[358660298,1745345439511,-7840.08544164,0.00020588,2]
[358660299,1745345439522,-7840.08544164,0.00020588,2]
[358660300,1745345439532,-7840.08544164,0.00020588,2]
[358660301,1745345439542,-7840.08544164,0.00020588,2]
[358660302,1745345439552,-7840.08544164,0.00020588,2]
[358660303,1745345439561,-7840.08544164,0.00020588,2]
[358660304,1745345439572,-7840.08544164,0.00020588,2]
[358660305,1745345439582,-7840.08544164,0.00020588,2]
[358660306,1745345439592,-7840.08544164,0.00020588,2]
[358660307,1745345439602,-7840.08544164,0.00020588,2]
[358660308,1745345439612,-7840.08544164,0.00020588,2]
[358660309,1745345439622,-7840.08544164,0.00020588,2]
[358660310,1745345439635,-7840.08544164,0.00020588,2]
[358660311,1745345439646,-7840.08544164,0.00020588,2]
[358660312,1745345439655,-7840.08544164,0.00020588,2]
[358660313,1745345439666,-7840.08544164,0.00020588,2]
[358660314,1745345439676,-7840.08544164,0.00020588,2]
[358660315,1745345439686,-7840.08544164,0.00020588,2]
[358660316,1745345439696,-7840.08544164,0.00020588,2]
[358660317,1745345439706,-7840.08544164,0.00020588,2]
[358660318,1745345439715,-357.12495484,0.00020588,2]
[358660319,1745345439725,-7840.08544162,0.00020588,2]
[358660320,1745345439735,-7840.08544162,0.00020588,2]
[358660321,1745345439749,-7840.08544162,0.00020588,2]
[358660322,1745345439762,-7840.08544162,0.00020588,2]
[358660323,1745345439776,-7840.08544162,0.00020588,2]
[358660324,1745345439789,-635.78780246,0.00020588,2]
[358660325,1745345439802,-7840.08544162,0.00020588,2]
[358660326,1745345439816,-500.0,0.00020588,2]
[358660327,1745345439827,-151.0,0.00020589,2]
[358660328,1745345439839,-298.174142,0.00020589,2]
[358660329,1745345439852,-151.0,0.00020589,2]
[358660330,1745345439865,-220.733468,0.00020589,2]
[358660331,1745345439879,-220.733468,0.00020589,2]
[358660332,1745345439892,-220.733468,0.00020589,2]
[358660333,1745345439906,-220.733468,0.00020589,2]
[358660334,1745345439919,-220.733468,0.00020589,2]
[358660335,1745345439932,-220.733468,0.00020589,2]
[358660336,1745345439945,-151.0,0.00020589,2]
[358660337,1745345439958,-151.0,0.00020589,2]
[358660338,1745345439970,-151.0,0.00020589,2]
[358660339,1745345439984,-151.0,0.00020589,2]
[358660340,1745345439996,-151.0,0.00020589,2]
[358660341,1745345440009,-151.0,0.00020589,2]
[358660342,1745345440022,-506.911175,0.00020589,2]
[358660343,1745345440035,-506.911175,0.00020589,2]
[358660344,1745345440046,-151.0,0.0002059,2]
[358660345,1745345440058,-151.0,0.0002059,2]
[358660346,1745345440069,-151.0,0.0002059,2]
[358660347,1745345440082,-151.0,0.0002059,2]
[358660348,1745345440093,-151.0,0.0002059,2]
[358660349,1745345440104,-151.0,0.0002059,2]
[358660350,1745345440117,-151.0,0.0002059,2]
[358660351,1745345440132,-151.0,0.0002059,2]
[358660352,1745345440144,-185.305586,0.0002059,2]
[358660353,1745345440156,-243.016633,0.0002059,2]
[358660354,1745345440167,-243.016633,0.0002059,2]
[358660355,1745345440179,-243.016633,0.0002059,2]
[358660356,1745345440190,-243.016633,0.0002059,2]
[358660357,1745345440204,-151.0,0.0002059,2]
[358660359,1745345440217,-151.0,0.0002059,2]
[358660361,1745345440230,-151.0,0.0002059,2]
[358660362,1745345440243,-151.0,0.0002059,2]
[358660363,1745345440256,-233.19614,0.0002059,2]